bitfinex/quotes_BTCUSD_20250802
["timestamp","ask_amount","ask_price","bid_price","bid_amount"]
[1754093321876,0.29841084,113410.0,113400.0,0.23953684]
[1754093322100,0.29841084,113410.0,113400.0,0.06317]
[1754093322328,0.29841084,113410.0,113400.0,0.23953684]
[1754093322542,0.29829084,113410.0,113400.0,0.23953684]
[1754093322774,0.002,113410.0,113400.0,0.23953684]
[1754093323257,0.17633574,113420.0,113410.0,0.17635129]
[1754093323497,0.32117574,113420.0,113410.0,0.17850129]
[1754093323773,0.32117574,113420.0,113410.0,0.23952129]
[1754093324021,0.14484,113420.0,113410.0,0.23952129]
[1754093324310,0.17638112,113440.0,113420.0,0.17633574]
[1754093324550,0.32114112,113440.0,113420.0,0.17633574]
[1754093324768,0.32106465,113440.0,113430.0,0.23949019]
[1754093325455,0.32106465,113440.0,113430.0,0.06317]
[1754093325686,0.32106465,113440.0,113430.0,0.06364968]
[1754093325925,0.32106465,113440.0,113430.0,0.23996987]
[1754093326167,0.32094465,113440.0,113430.0,0.23996987]
[1754093326391,0.32294465,113440.0,113430.0,0.23996987]
[1754093326611,0.32194465,113440.0,113430.0,0.23996987]
[1754093326850,0.17730465,113440.0,113430.0,0.06364968]
[1754093327080,0.32094465,113440.0,113430.0,0.05841968]
[1754093328269,0.32086465,113440.0,113430.0,0.05841968]
[1754093328500,0.32086465,113440.0,113430.0,0.06149968]
[1754093328755,0.32086465,113440.0,113430.0,0.06364968]
[1754093328976,0.17630465,113440.0,113430.0,0.06364968]
[1754093329388,0.17630465,113440.0,113430.0,0.05841968]
[1754093330990,0.17630465,113440.0,113430.0,0.00047968]
[1754093331203,0.52120465,113440.0,113430.0,0.00047968]
[1754093331413,0.60540454,113440.0,113430.0,0.00047968]
[1754093331911,0.63189254,113440.0,113430.0,0.00047968]
[1754093332521,0.63389254,113440.0,113430.0,0.00047968]
[1754093333599,0.65483882,113440.0,113430.0,0.00047968]
[1754093334038,0.65283882,113440.0,113430.0,0.00047968]
[1754093334252,0.65583882,113440.0,113430.0,0.00047968]
[1754093334909,0.74003871,113440.0,113430.0,0.00047968]
[1754093335341,0.65583882,113440.0,113430.0,0.00047968]
[1754093335765,0.65583882,113440.0,113430.0,1e-08]
[1754093346612,0.70885882,113440.0,113430.0,1e-08]
[1754093346842,0.65583882,113440.0,113430.0,1e-08]
[1754093351376,0.63689254,113440.0,113430.0,1e-08]
[1754093352436,0.72109243,113440.0,113430.0,1e-08]
[1754093354440,0.86401243,113440.0,113430.0,1e-08]
[1754093355227,0.95199243,113440.0,113430.0,1e-08]
[1754093355424,0.85903243,113440.0,113430.0,1e-08]
[1754093357943,0.87987145,113440.0,113430.0,1e-08]
[1754093358182,0.90487145,113440.0,113430.0,1e-08]
[1754093358659,0.64944156,113440.0,113430.0,1e-08]
[1754093358874,0.79208156,113440.0,113430.0,0.05755001]
[1754093359326,0.79208156,113440.0,113430.0,1e-08]
[1754093359545,0.17635129,113410.0,113400.0,0.07004334]
[1754093359779,0.84983118,113410.0,113400.0,0.07004334]
[1754093360025,0.84983118,113410.0,113400.0,0.07210334]
[1754093361080,0.84983118,113410.0,113400.0,0.00206]
[1754093361526,1.18983118,113410.0,113400.0,0.05961]
[1754093362676,1.19481118,113410.0,113400.0,0.05961]
[1754093362862,1.19281118,113410.0,113400.0,0.05961]
[1754093363116,1.19283118,113410.0,113400.0,0.05961]
[1754093364190,1.19481118,113410.0,113400.0,0.05961]
[1754093364410,1.22030818,113410.0,113400.0,0.05961]
[1754093364620,1.22230818,113410.0,113400.0,0.05961]
[1754093366744,0.77590818,113410.0,113400.0,0.05961]
[1754093368118,0.77562818,113410.0,113400.0,0.05961]
[1754093368383,0.63302818,113410.0,113400.0,0.05961]
[1754093368633,0.77550818,113410.0,113400.0,0.05961]
[1754093370039,0.63302818,113410.0,113400.0,0.05961]
[1754093370259,0.77542818,113410.0,113400.0,0.05961]
[1754093371948,0.77534818,113410.0,113400.0,0.05961]
[1754093372656,0.77534818,113410.0,113400.0,0.05663]
[1754093372888,0.82952818,113410.0,113400.0,0.05457]
[1754093373083,0.77534818,113410.0,113400.0,0.05457]
[1754093373376,0.17642907,113360.0,113350.0,0.18519899]
[1754093373612,0.31869351,113370.0,113360.0,0.07004334]
[1754093374079,0.31869351,113370.0,113360.0,0.13059334]
[1754093374349,0.34584873,113370.0,113360.0,0.06055]
[1754093374589,0.36358837,113370.0,113360.0,0.06055]
[1754093374829,0.36358837,113370.0,113360.0,0.06369382]
[1754093375565,0.36358837,113370.0,113360.0,0.06069382]
[1754093375794,0.36358837,113370.0,113360.0,0.06269382]
[1754093376250,0.36358837,113370.0,113360.0,0.06069382]
[1754093378655,0.36358837,113370.0,113360.0,0.23712289]
[1754093378859,0.36358837,113370.0,113360.0,0.06069382]
[1754093382379,0.026501,113390.0,113380.0,0.17639795]
[1754093382607,0.63161237,113400.0,113380.0,0.17639795]
[1754093382608,0.77341237,113400.0,113390.0,0.17638239]
[1754093382826,0.20284629,113410.0,113390.0,0.23693239]
[1754093383055,0.1418,113400.0,113390.0,0.17844239]
[1754093383271,0.31815129,113410.0,113400.0,0.17636684]
[1754093383493,0.31815129,113410.0,113400.0,0.00206]
[1754093383718,0.33594578,113410.0,113400.0,0.06055]
[1754093383940,0.33594578,113410.0,113400.0,0.23691684]
[1754093384341,0.33590578,113410.0,113400.0,0.23691684]
[1754093384563,0.17683029,113410.0,113400.0,0.23691684]
[1754093384719,0.31851029,113410.0,113400.0,0.23691684]
[1754093385362,0.31951029,113410.0,113400.0,0.23691684]
[1754093385601,0.34539883,113410.0,113400.0,0.23691684]
[1754093386012,0.36284652,113410.0,113400.0,0.06055]
[1754093386214,0.36484652,113410.0,113400.0,0.06055]
[1754093386787,0.36484652,113410.0,113400.0,0.23691684]
[1754093387426,0.36484652,113410.0,113400.0,0.06055]
[1754093388979,0.36484652,113410.0,113400.0,0.23691684]
[1754093391968,0.36484652,113410.0,113400.0,0.06055]
[1754093393041,0.36484652,113410.0,113400.0,0.23691684]
[1754093393769,0.003479,113410.0,113400.0,0.39116007]
[1754093394006,0.62268911,113450.0,113440.0,0.17630465]
[1754093394236,0.76380911,113450.0,113440.0,0.06069382]
[1754093394461,0.76380911,113450.0,113440.0,0.23699847]
[1754093394689,0.76590911,113450.0,113440.0,0.23699847]
[1754093394917,0.76590911,113450.0,113440.0,0.06069382]
[1754093395150,0.78356994,113450.0,113440.0,0.06069382]
[1754093395363,0.78356994,113450.0,113440.0,0.05774382]
[1754093396914,0.59859653,113450.0,113440.0,0.05774382]
[1754093398910,0.62505076,113450.0,113440.0,0.05774382]
[1754093399783,0.62505076,113450.0,113440.0,0.00014382]
[1754093400043,1.55345907,113450.0,113440.0,0.00014382]
[1754093400265,1.47332065,113450.0,113440.0,0.00014382]
[1754093401392,1.47432065,113450.0,113440.0,0.00014382]
[1754093404705,1.50080965,113450.0,113440.0,0.00014382]
[1754093405156,1.05440965,113450.0,113440.0,0.00014382]
[1754093406585,1.12052138,113450.0,113440.0,0.00014382]
[1754093406993,1.1379704,113450.0,113440.0,0.00014382]
[1754093409063,1.07185867,113450.0,113440.0,0.00014382]
[1754093416753,1.12487867,113450.0,113440.0,0.00014382]
[1754093416977,1.07185867,113450.0,113440.0,0.00014382]
[1754093422240,1.09083593,113450.0,113440.0,0.00014382]
[1754093422465,1.09083593,113450.0,113410.0,0.05473]
[1754093422466,0.17633574,113420.0,113410.0,0.05473]
[1754093422692,0.40255563,113420.0,113410.0,0.05176]
[1754093423130,0.40255563,113420.0,113410.0,0.05374]
[1754093424302,0.51635129,113410.0,113400.0,0.05477796]
[1754093424526,0.74043118,113410.0,113400.0,0.05675796]
[1754093424975,0.74254118,113410.0,113400.0,0.05675796]
[1754093425627,0.74043118,113410.0,113400.0,0.05675796]
[1754093427538,0.76692718,113410.0,113400.0,0.05675796]
[1754093434764,1.21332718,113410.0,113400.0,0.05675796]
[1754093437394,1.21543718,113410.0,113400.0,0.05675796]
[1754093438053,1.27291718,113410.0,113400.0,4.796e-05]
[1754093439035,0.17639795,113380.0,113370.0,0.00309]
[1754093439274,0.31623795,113380.0,113370.0,0.05654]
[1754093440417,0.31623795,113380.0,113370.0,0.05954]
[1754093441298,0.33200037,113380.0,113370.0,0.05954]
[1754093442159,0.35910958,113380.0,113370.0,0.05954]
[1754093443548,0.21926958,113380.0,113370.0,0.23595351]
[1754093443785,0.34334716,113380.0,113370.0,0.23595351]
[1754093444001,0.34334716,113380.0,113370.0,0.05954]
[1754093444890,0.34334716,113380.0,113370.0,0.23595351]
[1754093445182,0.34334716,113380.0,113370.0,0.05954]
[1754093446328,0.34334716,113380.0,113370.0,0.23595351]
[1754093446787,0.62278239,113390.0,113380.0,0.17639795]
[1754093447007,0.76262239,113390.0,113380.0,0.23024743]
[1754093447464,0.76262239,113390.0,113380.0,0.05654]
[1754093448347,0.76262239,113390.0,113380.0,0.23293795]
[1754093448560,0.76262239,113390.0,113380.0,0.05654]
[1754093449464,0.76262239,113390.0,113380.0,0.23293795]
[1754093450116,0.58624,113390.0,113380.0,0.23293795]
[1754093450852,0.61207881,113390.0,113380.0,0.23293795]
[1754093453675,0.4464,113390.0,113380.0,0.23293795]
[1754093454150,0.13984,113400.0,113390.0,0.17638239]
[1754093454368,0.13984,113400.0,113390.0,0.17848239]
[1754093454575,0.18515252,113420.0,113410.0,0.17635129]
[1754093454780,0.35319928,113420.0,113410.0,0.17848129]
[1754093454973,0.35319928,113420.0,113410.0,0.23295129]
[1754093454974,0.69319928,113420.0,113410.0,0.23295129]
[1754093455173,0.21335928,113420.0,113410.0,0.23295129]
[1754093455444,0.18513619,113430.0,113420.0,0.17633574]
[1754093455674,0.32702619,113430.0,113420.0,0.17846574]
[1754093455873,0.24016386,113440.0,113420.0,0.23604574]
[1754093456126,0.13984,113430.0,113420.0,0.18157574]
[1754093456754,0.31616019,113430.0,113420.0,0.23604574]
[1754093457186,0.13984,113430.0,113420.0,0.23604574]
[1754093457445,0.31616019,113430.0,113420.0,0.23604574]
[1754093457864,0.31716019,113430.0,113420.0,0.23604574]
[1754093458298,0.14184,113430.0,113420.0,0.23604574]
[1754093458533,0.15774566,113430.0,113420.0,0.23604574]
[1754093458782,0.002,113430.0,113420.0,0.23604574]
[1754093460117,0.18212519,113430.0,113420.0,0.05971]
[1754093460339,0.17633574,113420.0,113410.0,0.05447]
[1754093460562,0.17635129,113410.0,113400.0,0.05758]
[1754093460844,0.17635129,113410.0,113400.0,0.05971]
[1754093460845,0.17840129,113410.0,113400.0,0.05971]
[1754093461079,0.17840129,113410.0,113400.0,0.23296684]
[1754093461342,0.19447469,113410.0,113400.0,0.05971]
[1754093461562,0.17840129,113410.0,113400.0,0.05971]
[1754093461828,0.31613574,113420.0,113400.0,0.23607684]
[1754093462071,0.1398,113420.0,113410.0,0.23393129]
[1754093462302,0.32569619,113430.0,113420.0,0.17633574]
[1754093462519,0.32569619,113430.0,113420.0,0.23604574]
[1754093462981,0.32569619,113430.0,113420.0,0.05971]
[1754093463448,0.32774619,113430.0,113420.0,0.05971]
[1754093463890,0.32774619,113430.0,113420.0,0.23604574]
[1754093464120,0.149376,113430.0,113420.0,0.23604574]
[1754093464369,0.32569619,113430.0,113420.0,0.23604574]
[1754093465775,0.64759224,113440.0,113430.0,0.17632019]
[1754093466017,0.7721436,113440.0,113430.0,0.23603019]
[1754093466275,0.76332837,113440.0,113430.0,0.23603019]
[1754093468653,0.44654372,113440.0,113430.0,0.23803019]
[1754093468907,0.58690372,113440.0,113430.0,0.24103019]
[1754093469163,0.76320837,113440.0,113430.0,0.24103019]
[1754093470556,0.58690372,113440.0,113430.0,0.24103019]
[1754093473710,0.76525837,113440.0,113430.0,0.23792019]
[1754093475387,0.76841837,113440.0,113430.0,0.05947]
[1754093476595,0.62805837,113440.0,113430.0,0.05947]
[1754093476737,0.76813837,113440.0,113430.0,0.05947]
[1754093477171,0.76809837,113440.0,113430.0,0.05947]
[1754093477978,0.76493837,113440.0,113430.0,0.23792019]
[1754093478344,0.62489837,113440.0,113430.0,0.23792019]
[1754093478545,0.76481837,113440.0,113430.0,0.23792019]
[1754093479859,0.62489837,113440.0,113430.0,0.23792019]
[1754093480049,0.76481837,113440.0,113430.0,0.23792019]
[1754093480251,0.62489837,113440.0,113430.0,0.0616]
[1754093480466,0.76473837,113440.0,113430.0,0.0616]
[1754093480668,0.76789837,113440.0,113430.0,0.0616]
[1754093480873,0.76789837,113440.0,113430.0,0.23792019]
[1754093481095,0.31819465,113440.0,113430.0,0.23792019]
[1754093481296,0.31819465,113440.0,113430.0,0.0616]
[1754093481717,0.31819465,113440.0,113430.0,0.23792019]
[1754093481903,0.23335465,113440.0,113430.0,0.005]
[1754093482163,0.37315465,113440.0,113430.0,0.005]
[1754093482372,0.17835465,113440.0,113430.0,0.23579019]
[1754093482577,0.31815465,113440.0,113430.0,0.0616]
[1754093482785,0.37315465,113440.0,113430.0,0.005]
[1754093484022,0.45735454,113440.0,113430.0,0.005]
[1754093484228,0.79735454,113440.0,113430.0,0.003]
[1754093484446,0.86586323,113440.0,113430.0,0.003]
[1754093484646,0.79739454,113440.0,113430.0,0.001]
[1754093484862,0.79739454,113440.0,113430.0,0.003]
[1754093485077,1.02479553,113440.0,113430.0,0.003]
[1754093488362,0.97287553,113440.0,113430.0,0.003]
[1754093488591,0.40567564,113440.0,113430.0,0.23358019]
[1754093488778,0.54342564,113440.0,113430.0,0.30676353]
[1754093489211,0.54342564,113440.0,113430.0,0.30376353]
[1754093489627,0.54342564,113440.0,113430.0,0.12744334]
[1754093489842,0.54342564,113440.0,113430.0,0.30376353]
[1754093490488,0.36712099,113440.0,113430.0,0.30376353]
[1754093490921,0.1398,113440.0,113430.0,0.30376353]
[1754093492652,0.1398,113440.0,113430.0,0.23372019]
[1754093493820,0.31610465,113440.0,113430.0,0.23372019]
[1754093494180,0.1398,113440.0,113430.0,0.23372019]
[1754093498932,0.16660018,113450.0,113440.0,0.17630465]
[1754093499106,0.17139469,113450.0,113440.0,0.23056465]
[1754093499307,0.36244489,113450.0,113440.0,0.23056465]
[1754093499564,0.35969038,113450.0,113440.0,0.23056465]
[1754093499878,0.36286038,113450.0,113440.0,0.05219]
[1754093500211,0.41511038,113450.0,113440.0,0.05219]
[1754093500877,0.41511038,113450.0,113440.0,0.05319]
[1754093501149,0.41511038,113450.0,113440.0,0.05519]
[1754093504003,0.36286038,113450.0,113440.0,0.05519]
[1754093508016,0.35969038,113450.0,113440.0,0.0604]
[1754093509996,0.35969038,113450.0,113440.0,0.05726]
[1754093510629,0.36286038,113450.0,113440.0,0.05726]
[1754093513216,0.35969038,113450.0,113440.0,0.05726]
[1754093513929,0.20516929,113450.0,113440.0,0.23670465]
[1754093514143,0.17628911,113450.0,113440.0,0.23670465]
[1754093514360,0.31600911,113450.0,113440.0,0.23670465]
[1754093515637,0.13972,113450.0,113440.0,0.23670465]
[1754093516549,0.31600911,113450.0,113440.0,0.23670465]
[1754093520807,0.21717501,113460.0,113450.0,0.17628911]
[1754093521022,0.23178202,113470.0,113460.0,0.17627357]
[1754093521241,0.23178202,113470.0,113450.0,0.37198911]
[1754093521242,0.37342202,113470.0,113450.0,0.37198911]
[1754093521471,0.17902784,113460.0,113450.0,0.37198911]
[1754093521685,0.17627357,113460.0,113450.0,0.37407911]
[1754093521912,0.17823357,113460.0,113450.0,0.19469]
[1754093522546,0.1925018,113460.0,113450.0,0.19469]
[1754093522768,0.1954918,113460.0,113450.0,0.1926]
[1754093523202,0.1954918,113460.0,113450.0,0.05292]
[1754093523935,0.1925018,113460.0,113450.0,0.05292]
[1754093524165,0.1954918,113460.0,113450.0,0.05501]
[1754093524387,0.1954918,113460.0,113450.0,0.05292]
[1754093525525,0.1925018,113460.0,113450.0,0.05501]
[1754093526685,0.1925018,113460.0,113450.0,0.23129911]
[1754093526976,0.1925018,113460.0,113450.0,0.23439911]
[1754093528844,0.1925018,113460.0,113450.0,0.05811]
[1754093529132,0.1925018,113460.0,113450.0,0.05501]
[1754093529681,0.1925018,113460.0,113450.0,0.23129911]
[1754093529917,0.1925018,113460.0,113450.0,0.23439911]
[1754093530406,0.1925018,113460.0,113450.0,0.05811]
[1754093530645,0.1925018,113460.0,113450.0,0.23439911]
[1754093532846,0.17823357,113460.0,113450.0,0.23439911]
[1754093534242,0.36012832,113470.0,113450.0,0.23439911]
[1754093534495,0.36012832,113470.0,113450.0,0.18147911]
[1754093534749,0.0204,113480.0,113470.0,0.17625804]
[1754093534956,0.0204,113480.0,113470.0,0.17834804]
[1754093534957,0.1601838,113480.0,113470.0,0.17834804]
[1754093535136,0.1601838,113480.0,113470.0,0.23436804]
[1754093535311,0.35069279,113480.0,113470.0,0.23436804]
[1754093535515,0.35265279,113480.0,113470.0,0.23436804]
[1754093536134,0.37912072,113480.0,113470.0,0.23436804]
[1754093536503,0.37908072,113480.0,113470.0,0.23436804]
[1754093536712,0.37908072,113480.0,113470.0,0.23126804]
[1754093539222,0.37908072,113480.0,113470.0,0.23436804]
[1754093540585,0.0205438,113480.0,113470.0,0.23436804]
[1754093540780,0.1601438,113480.0,113470.0,0.23436804]
[1754093540981,0.0205438,113480.0,113470.0,0.23436804]
[1754093545804,0.1967863,113480.0,113470.0,0.23436804]
[1754093546048,0.17627357,113460.0,113450.0,0.08419989]
[1754093546267,0.17627357,113460.0,113440.0,0.2290429]
[1754093546268,0.17628911,113450.0,113440.0,0.17945465]
[1754093546510,0.00198,113450.0,113440.0,0.40221454]
[1754093546711,0.17826911,113450.0,113440.0,0.45758454]
[1754093546980,0.17945357,113460.0,113440.0,0.45758454]
[1754093547185,0.17945357,113460.0,113450.0,0.05222]
[1754093547400,0.18143357,113460.0,113450.0,0.05422]
[1754093547784,0.17825357,113460.0,113450.0,0.05422]
[1754093548005,0.17627357,113460.0,113450.0,0.37332911]
[1754093548215,0.17627357,113460.0,113450.0,0.19704]
[1754093548641,0.17628911,113450.0,113440.0,0.31772454]
[1754093548850,0.17628911,113450.0,113440.0,0.45754454]
[1754093549255,0.17945357,113460.0,113440.0,0.45854454]
[1754093549485,0.17945357,113460.0,113450.0,0.05222]
[1754093549694,0.18143357,113460.0,113450.0,0.05222]
[1754093550564,0.23045357,113460.0,113450.0,0.05222]
[1754093550748,0.17628911,113450.0,113440.0,0.46039454]
[1754093550947,0.17628911,113450.0,113440.0,0.46054454]
[1754093551712,0.17628911,113450.0,113440.0,0.45754454]
[1754093552628,0.17628911,113450.0,113440.0,0.46054454]
[1754093552787,0.17628911,113450.0,113440.0,0.46254454]
[1754093553381,0.17826911,113450.0,113440.0,0.06252]
[1754093553585,0.17826911,113450.0,113440.0,0.20204]
[1754093553843,0.17826911,113450.0,113440.0,0.19889]
[1754093554458,0.18144911,113450.0,113440.0,0.05937]
[1754093554690,0.18144911,113450.0,113440.0,0.19889]
[1754093554850,0.19508266,113450.0,113440.0,0.19889]
[1754093555179,0.19508266,113450.0,113440.0,0.05937]
[1754093555324,0.19508266,113450.0,113440.0,0.19889]
[1754093557589,0.19190266,113450.0,113440.0,0.19889]
[1754093558179,0.19190266,113450.0,113440.0,0.20204]
[1754093558554,0.19190266,113450.0,113440.0,0.19889]
[1754093560014,0.19190266,113450.0,113440.0,0.05722]
[1754093560214,0.38358266,113450.0,113440.0,0.005]
[1754093561044,0.38358266,113450.0,113440.0,0.002]
[1754093561389,0.38358266,113450.0,113440.0,0.004]
[1754093562507,0.38358266,113450.0,113440.0,0.002]
[1754093562843,0.38358266,113450.0,113440.0,0.003]
[1754093564708,0.52641647,113450.0,113440.0,0.003]
[1754093564931,0.46778255,113450.0,113440.0,0.003]
[1754093565339,0.80778255,113450.0,113440.0,0.003]
[1754093565696,0.17632019,113430.0,113420.0,0.05222]
[1754093565906,0.17830019,113430.0,113420.0,0.05437]
[1754093566364,0.17830019,113430.0,113420.0,0.05752]
[1754093567119,0.17830019,113430.0,113420.0,0.05966372]
[1754093567501,0.17830019,113430.0,113420.0,0.05651372]
[1754093567713,0.17830019,113430.0,113420.0,0.05951372]
[1754093568678,0.17830019,113430.0,113420.0,0.06266372]
[1754093569897,0.17830019,113430.0,113420.0,0.05951372]
[1754093570142,0.17830019,113430.0,113420.0,0.05736372]
[1754093570349,0.18148019,113430.0,113420.0,0.05736372]
[1754093570549,0.20779107,113430.0,113420.0,0.05736372]
[1754093570854,0.20779107,113430.0,113420.0,0.05467332]
[1754093571703,0.39625107,113430.0,113420.0,0.00514372]
[1754093571912,0.39625107,113430.0,113420.0,0.00014372]
[1754093572115,0.39625107,113430.0,113420.0,0.00214372]
[1754093572325,0.39625107,113430.0,113420.0,0.00314372]
[1754093573404,0.34207107,113430.0,113420.0,0.06066372]
[1754093574465,0.31576019,113430.0,113420.0,0.23699946]
[1754093574900,0.17631867,113440.0,113430.0,0.17632019]
[1754093575113,0.31574465,113440.0,113430.0,0.17836019]
[1754093575328,0.17630465,113440.0,113430.0,0.22896019]
[1754093575547,0.43007756,113460.0,113450.0,0.17628911]
[1754093575735,0.17628911,113450.0,113440.0,0.31574465]
[1754093575999,0.17627357,113460.0,113450.0,0.17628911]
[1754093576217,0.31571357,113460.0,113450.0,0.17832911]
[1754093576433,0.17627357,113460.0,113450.0,0.22892911]
[1754093576649,0.33804923,113470.0,113450.0,0.22892911]
[1754093576780,0.17627357,113460.0,113450.0,0.18141911]
[1754093577430,0.17627357,113460.0,113450.0,0.22892911]
[1754093578248,0.17627357,113460.0,113450.0,0.22992911]
[1754093578451,0.33804923,113470.0,113450.0,0.22992911]
[1754093578669,0.33804923,113470.0,113450.0,0.18241911]
[1754093578920,0.33804923,113470.0,113460.0,0.04751]
[1754093579128,0.34015923,113470.0,113460.0,0.04751]
[1754093579354,0.34015923,113470.0,113460.0,0.04955]
[1754093580083,0.34024375,113470.0,113460.0,0.04955]
[1754093580291,0.34124375,113470.0,113460.0,0.04955]
[1754093580685,0.20180375,113470.0,113460.0,0.04955]
[1754093580914,0.32556951,113470.0,113460.0,0.22891357]
[1754093581340,0.33881032,113470.0,113460.0,0.22891357]
[1754093581547,0.33781032,113470.0,113460.0,0.22891357]
[1754093581912,0.32556951,113470.0,113460.0,0.22891357]
[1754093582138,0.00108452,113470.0,113460.0,0.36831357]
[1754093582934,0.17845256,113470.0,113460.0,0.36522357]
[1754093583551,0.17845256,113470.0,113460.0,0.36622357]
[1754093583938,0.17845256,113470.0,113460.0,0.18995]
[1754093584387,0.17845256,113470.0,113460.0,0.05055]
[1754093584600,0.17845256,113470.0,113460.0,0.36618357]
[1754093585032,0.00219452,113470.0,113460.0,0.36927357]
[1754093585233,8.452e-05,113470.0,113460.0,0.36927357]
[1754093586181,0.37881007,113490.0,113470.0,0.17625804]
[1754093586427,0.17624483,113480.0,113470.0,0.17934804]
[1754093586657,0.17624483,113480.0,113470.0,0.18138804]
[1754093586888,0.17624483,113480.0,113470.0,0.22889804]
[1754093587378,0.31558698,113490.0,113470.0,0.31309793]
[1754093587598,0.31558698,113490.0,113480.0,0.04751]
[1754093587806,0.31769698,113490.0,113480.0,0.04955]
[1754093588006,0.31769698,113490.0,113480.0,0.2257925]
[1754093588229,0.31869698,113490.0,113480.0,0.2257925]
[1754093588685,0.31769698,113490.0,113480.0,0.2257925]
[1754093588891,0.31869698,113490.0,113480.0,0.2257925]
[1754093593309,0.31861698,113490.0,113480.0,0.2257925]
[1754093593703,0.31861698,113490.0,113480.0,0.2288825]
[1754093594772,0.14239,113490.0,113480.0,0.2288825]
[1754093595980,0.14028,113490.0,113480.0,0.2288825]
[1754093596337,0.14239,113490.0,113480.0,0.2288825]
[1754093596775,0.14028,113490.0,113480.0,0.2288825]
[1754093597024,0.31650698,113490.0,113480.0,0.2288825]
[1754093597270,0.31861698,113490.0,113480.0,0.2288825]
[1754093598427,0.31861698,113490.0,113480.0,0.3681625]
[1754093599085,0.14028,113490.0,113480.0,0.3681625]
[1754093601075,0.001,113490.0,113480.0,0.3681625]
[1754093603492,0.001,113490.0,113480.0,0.38040948]
[1754093604419,0.001,113490.0,113480.0,0.3681625]
[1754093609090,0.001,113490.0,113480.0,0.46981141]
[1754093609364,0.001,113490.0,113480.0,0.49627741]
[1754093609603,0.001,113490.0,113480.0,0.83627741]
[1754093610242,0.001,113490.0,113480.0,0.83827741]
[1754093610439,0.0004,113500.0,113490.0,0.17622698]
[1754093610597,0.00048451,113500.0,113490.0,0.26245687]
[1754093610819,0.00048451,113500.0,113490.0,0.31423687]
[1754093612061,0.00048451,113500.0,113490.0,0.31523687]
[1754093616452,0.00048451,113500.0,113490.0,0.33268589]
[1754093617453,0.00048451,113500.0,113490.0,0.67268589]
[1754093618245,0.00048451,113500.0,113490.0,0.67168589]
[1754093618692,0.00048451,113500.0,113490.0,0.67368589]
[1754093619968,0.00048451,113500.0,113490.0,0.67468589]
[1754093621592,0.17669596,113500.0,113490.0,0.67468589]
[1754093621811,0.18190596,113500.0,113490.0,0.45128687]
[1754093622030,0.00569451,113500.0,113490.0,0.45128687]
[1754093622240,0.00248451,113500.0,113490.0,0.45331687]
[1754093622895,0.00248451,113500.0,113490.0,0.45627687]
[1754093623328,0.00048451,113500.0,113490.0,0.45627687]
[1754093624595,0.00048451,113500.0,113490.0,0.14204]
[1754093624596,0.18190596,113500.0,113490.0,0.14204]
[1754093624817,0.23252596,113500.0,113490.0,0.003]
[1754093625728,0.31672585,113500.0,113490.0,0.003]
[1754093625965,0.45572585,113500.0,113490.0,0.001]
[1754093626446,0.45572585,113500.0,113490.0,0.002]
[1754093626915,0.45572585,113500.0,113490.0,0.001]
[1754093627600,0.1762425,113480.0,113470.0,0.23389036]
[1754093627881,0.1762425,113480.0,113470.0,0.37293036]
[1754093628080,0.1782425,113480.0,113470.0,0.37293036]
[1754093628356,0.1782425,113480.0,113470.0,0.18786]
[1754093628661,0.1782425,113480.0,113470.0,0.36411804]
[1754093628868,0.1782425,113480.0,113470.0,0.36511804]
[1754093629359,0.1782425,113480.0,113470.0,0.36714804]
[1754093629959,0.1762425,113480.0,113470.0,0.37010804]
[1754093632345,0.17945077,113490.0,113480.0,0.1762425]
[1754093632544,0.17822698,113490.0,113480.0,0.1782725]
[1754093632750,0.17822698,113490.0,113480.0,0.2270925]
[1754093633560,0.17922698,113490.0,113480.0,0.2270925]
[1754093634135,0.17922698,113490.0,113480.0,0.05085]
[1754093634820,0.18244698,113490.0,113480.0,0.04882]
[1754093636263,0.1762425,113480.0,113470.0,0.36793804]
[1754093636480,0.1762425,113480.0,113470.0,0.36993804]
[1754093637457,0.1762425,113480.0,113470.0,0.37093804]
[1754093639768,0.1783525,113480.0,113470.0,0.19164]
[1754093639974,0.2307025,113480.0,113470.0,0.001]
[1754093640395,0.24302675,113480.0,113470.0,0.001]
[1754093641260,0.24502355,113480.0,113450.0,0.37681257]
[1754093641476,0.18224447,113470.0,113460.0,0.04968]
[1754093641667,0.18160044,113470.0,113460.0,0.04968]
[1754093642118,0.18160044,113470.0,113460.0,0.22595357]
[1754093642323,0.18160044,113470.0,113460.0,0.04968]
[1754093643105,0.18160044,113470.0,113460.0,0.22595357]
[1754093643307,0.17838044,113470.0,113460.0,0.22795357]
[1754093643514,0.17838044,113470.0,113460.0,0.22895357]
[1754093643714,0.17838044,113470.0,113460.0,0.05268]
[1754093644137,0.17838044,113470.0,113460.0,0.22895357]
[1754093644720,0.22019042,113480.0,113470.0,0.17625804]
[1754093644922,0.32717832,113490.0,113480.0,0.1762425]
[1754093645153,0.32606832,113490.0,113480.0,0.1782425]
[1754093645320,0.32606832,113490.0,113480.0,0.2279225]
[1754093646554,0.33829532,113490.0,113480.0,0.2279225]
[1754093646751,0.33929532,113490.0,113480.0,0.2279225]
[1754093646994,0.33929532,113490.0,113480.0,0.05168]
[1754093647213,0.34251532,113490.0,113480.0,0.04968]
[1754093648782,0.001,113490.0,113480.0,0.2310325]
[1754093649215,0.17722698,113490.0,113480.0,0.2310325]
[1754093649455,0.001,113490.0,113480.0,0.2310325]
[1754093649873,0.13936451,113500.0,113490.0,0.17622698]
[1754093650069,0.00048451,113500.0,113490.0,0.23101698]
[1754093650289,0.00048451,113500.0,113490.0,0.36989698]
[1754093650865,0.17669596,113500.0,113490.0,0.36989698]
[1754093652050,0.17769596,113500.0,113490.0,0.36989698]
[1754093653151,0.00148451,113500.0,113490.0,0.36989698]
[1754093653577,0.00148451,113500.0,113490.0,0.47154589]
[1754093653748,0.00148451,113500.0,113490.0,0.81154589]
[1754093653954,0.00148451,113500.0,113490.0,0.79409687]
[1754093654847,0.00048451,113500.0,113490.0,0.79609687]
[1754093655068,0.00048451,113500.0,113490.0,0.79709687]
[1754093666382,0.70743478,113500.0,113490.0,0.05468]
[1754093666592,0.75735478,113500.0,113490.0,0.003]
[1754093667718,0.75735478,113500.0,113490.0,0.002]
[1754093667940,0.71039478,113500.0,113490.0,0.22820698]
[1754093668622,0.71039478,113500.0,113490.0,0.22620698]
[1754093668848,0.00048451,113500.0,113490.0,0.23117698]
[1754093669076,0.00048451,113500.0,113490.0,0.23217698]
[1754093670479,0.17669596,113500.0,113490.0,0.23217698]
[1754093670691,0.17885596,113500.0,113490.0,0.22917698]
[1754093673963,0.17885596,113500.0,113490.0,0.23217698]
[1754093677178,0.17885596,113500.0,113490.0,0.05295]
[1754093677445,0.75735478,113500.0,113490.0,0.13968]
[1754093678000,0.75735478,113500.0,113490.0,0.18966]